[Event "Early-Titled-Tuesday-Blitz-May-28-2024"]
[Site "Chess.com"]
[Date "2024.05.28"]
[Round "4"]
[White "Grebnev_A"]
[Black "Sl4werThanYou"]
[Result "1-0"]
[WhiteElo "2553"]
[BlackElo "2730"]
[TimeControl "180+1"]
[EndTime "8:43:03 PDT"]
[Termination "Grebnev_A won by checkmate"]

1. Nf3 {[%clk 0:03:00.9]} 1... Nf6 {[%clk 0:02:59]} 2. c4 {[%clk 0:03:01]} 2...
e6 {[%clk 0:02:58.5]} 3. Nc3 {[%clk 0:03:00.3]} 3... d5 {[%clk 0:02:59.2]} 4. e3
{[%clk 0:03:00.7]} 4... Bd6 {[%clk 0:02:56.1]} 5. b3 {[%clk 0:03:00.6]} 5... O-O
{[%clk 0:02:56.2]} 6. Bb2 {[%clk 0:03:00.9]} 6... Nc6 {[%clk 0:02:46.9]} 7. d4
{[%clk 0:02:57.4]} 7... b6 {[%clk 0:02:46.2]} 8. cxd5 {[%clk 0:02:57.3]} 8...
exd5 {[%clk 0:02:46.3]} 9. Bd3 {[%clk 0:02:58]} 9... Bb7 {[%clk 0:02:46.8]} 10.
O-O {[%clk 0:02:58]} 10... a6 {[%clk 0:02:47.4]} 11. Ne2 {[%clk 0:02:57.8]}
11... Re8 {[%clk 0:02:47.1]} 12. Rc1 {[%clk 0:02:57.2]} 12... Ne4 {[%clk
0:02:44.1]} 13. Nf4 {[%clk 0:02:53.4]} 13... Ne7 {[%clk 0:02:37.9]} 14. Ne5
{[%clk 0:02:51.3]} 14... Ng6 {[%clk 0:02:36.3]} 15. Nfxg6 {[%clk 0:02:47]} 15...
hxg6 {[%clk 0:02:36.4]} 16. f3 {[%clk 0:02:46.9]} 16... Nf6 {[%clk 0:02:24.7]}
17. Qe1 {[%clk 0:02:42.6]} 17... c5 {[%clk 0:02:22.5]} 18. Qh4 {[%clk
0:02:28.7]} 18... Rc8 {[%clk 0:02:15.2]} 19. a4 {[%clk 0:02:17.2]} 19... Bxe5
{[%clk 0:01:58.6]} 20. dxe5 {[%clk 0:02:16.7]} 20... Nd7 {[%clk 0:01:59.3]} 21.
Qg3 {[%clk 0:02:14.1]} 21... Qe7 {[%clk 0:01:07.8]} 22. f4 {[%clk 0:02:12.5]}
22... c4 {[%clk 0:01:08.4]} 23. bxc4 {[%clk 0:02:10.5]} 23... Nc5 {[%clk
0:01:09.1]} 24. Ba3 {[%clk 0:02:04.7]} 24... Qe6 {[%clk 0:01:07.2]} 25. cxd5
{[%clk 0:01:56.7]} 25... Qxd5 {[%clk 0:01:07.1]} 26. Bc4 {[%clk 0:01:56.8]}
26... Qe4 {[%clk 0:01:07.4]} 27. Bxc5 {[%clk 0:01:21.3]} 27... Rxc5 {[%clk
0:01:03.9]} 28. Be2 {[%clk 0:01:04.1]} 28... Rec8 {[%clk 0:00:58.3]} 29. Rce1
{[%clk 0:01:04]} 29... Qxa4 {[%clk 0:00:47.4]} 30. e6 {[%clk 0:01:02.7]} 30...
fxe6 {[%clk 0:00:45.3]} 31. Qxg6 {[%clk 0:01:02.3]} 31... Qe4 {[%clk 0:00:45.9]}
32. Qg3 {[%clk 0:01:02.5]} 32... Qf5 {[%clk 0:00:39]} 33. Bg4 {[%clk 0:01:02]}
33... Qf6 {[%clk 0:00:38.9]} 34. e4 {[%clk 0:00:57.6]} 34... Rc3 {[%clk
0:00:32.1]} 35. Qf2 {[%clk 0:00:57.7]} 35... Rc2 {[%clk 0:00:29.7]} 36. Qxb6
{[%clk 0:00:57.8]} 36... Bc6 {[%clk 0:00:24.5]} 37. Qxa6 {[%clk 0:00:57.3]}
37... Rd8 {[%clk 0:00:13.2]} 38. Re2 {[%clk 0:00:52.5]} 38... Rxe2 {[%clk
0:00:10.4]} 39. Qxe2 {[%clk 0:00:50.9]} 39... Qd4+ {[%clk 0:00:07.2]} 40. Kh1
{[%clk 0:00:49.5]} 40... Bxe4 {[%clk 0:00:07.9]} 41. Bxe6+ {[%clk 0:00:49.4]}
41... Kf8 {[%clk 0:00:08.6]} 42. Bh3 {[%clk 0:00:42.8]} 42... Bd3 {[%clk
0:00:08.1]} 43. Qf2 {[%clk 0:00:29.4]} 43... Bxf1 {[%clk 0:00:07.9]} 44. Qxf1
{[%clk 0:00:30.3]} 44... Qd1 {[%clk 0:00:06.7]} 45. g3 {[%clk 0:00:29.4]} 45...
Qc2 {[%clk 0:00:05.3]} 46. Bg4 {[%clk 0:00:28.3]} 46... Rd2 {[%clk 0:00:04.9]}
47. Bf3 {[%clk 0:00:17.4]} 47... Rxh2+ {[%clk 0:00:04.9]} 48. Kg1 {[%clk
0:00:18]} 48... Rd2 {[%clk 0:00:05.5]} 49. Qe1 {[%clk 0:00:17]} 49... Qc5+
{[%clk 0:00:03.9]} 50. Kh1 {[%clk 0:00:16.4]} 50... Qc3 {[%clk 0:00:04.5]} 51.
Bg2 {[%clk 0:00:13.4]} 51... Qd3 {[%clk 0:00:02.2]} 52. Kh2 {[%clk 0:00:12.9]}
52... Qd6 {[%clk 0:00:01.6]} 53. Qe4 {[%clk 0:00:12.8]} 53... Rd4 {[%clk
0:00:01.8]} 54. Qf5+ {[%clk 0:00:12.8]} 54... Ke8 {[%clk 0:00:01.1]} 55. Qh5+
{[%clk 0:00:11.4]} 55... Ke7 {[%clk 0:00:01.5]} 56. Qh7 {[%clk 0:00:11.9]} 56...
Kf8 {[%clk 0:00:02.4]} 57. Qh8+ {[%clk 0:00:12.2]} 57... Kf7 {[%clk 0:00:03.1]}
58. Bf3 {[%clk 0:00:11.7]} 58... Rd2+ {[%clk 0:00:03.3]} 59. Kh3 {[%clk
0:00:11.9]} 59... Qd7+ {[%clk 0:00:03.9]} 60. Bg4 {[%clk 0:00:12.3]} 60... Qd4
{[%clk 0:00:04.6]} 61. Bh5+ {[%clk 0:00:12.5]} 61... Ke7 {[%clk 0:00:05.5]} 62.
Qe8+ {[%clk 0:00:12.6]} 62... Kd6 {[%clk 0:00:06.4]} 63. Bg6 {[%clk 0:00:10.9]}
63... Rd1 {[%clk 0:00:05.3]} 64. Kg4 {[%clk 0:00:10.5]} 64... Rd2 {[%clk
0:00:03.6]} 65. Bf5 {[%clk 0:00:10.6]} 65... Qf6 {[%clk 0:00:03.9]} 66. Qb5
{[%clk 0:00:09.3]} 66... Rd4 {[%clk 0:00:03.7]} 67. Qb6+ {[%clk 0:00:09.7]}
67... Ke7 {[%clk 0:00:04]} 68. Qc7+ {[%clk 0:00:10.1]} 68... Kf8 {[%clk
0:00:04.7]} 69. Qc8+ {[%clk 0:00:10.5]} 69... Rd8 {[%clk 0:00:05.5]} 70. Qc5+
{[%clk 0:00:10.9]} 70... Kg8 {[%clk 0:00:06.2]} 71. Qc4+ {[%clk 0:00:10.7]}
71... Kh8 {[%clk 0:00:06.8]} 72. Qc1 {[%clk 0:00:09.3]} 72... g6 {[%clk
0:00:07]} 73. Be4 {[%clk 0:00:08]} 73... Qe6+ {[%clk 0:00:07.4]} 74. Kf3 {[%clk
0:00:08.6]} 74... Qf6 {[%clk 0:00:06.7]} 75. Qc7 {[%clk 0:00:07.9]} 75... Re8
{[%clk 0:00:06.8]} 76. Qd7 {[%clk 0:00:07.5]} 76... Re7 {[%clk 0:00:07.2]} 77.
Qd8+ {[%clk 0:00:07.6]} 77... Kg7 {[%clk 0:00:08]} 78. Qd5 {[%clk 0:00:08.3]}
78... Qc3+ {[%clk 0:00:07.9]} 79. Kg4 {[%clk 0:00:08.5]} 79... Qf6 {[%clk
0:00:08.2]} 80. Qd3 {[%clk 0:00:07.8]} 80... Qe6+ {[%clk 0:00:08.2]} 81. Kf3
{[%clk 0:00:08.4]} 81... Rd7 {[%clk 0:00:07.8]} 82. Qc3+ {[%clk 0:00:08.2]}
82... Kh7 {[%clk 0:00:08.2]} 83. Qc5 {[%clk 0:00:06]} 83... Re7 {[%clk
0:00:07.5]} 84. Qd4 {[%clk 0:00:06.3]} 84... Rd7 {[%clk 0:00:07.4]} 85. Qc3
{[%clk 0:00:06.3]} 85... Qd6 {[%clk 0:00:05.2]} 86. Kg4 {[%clk 0:00:04.2]} 86...
Qd1+ {[%clk 0:00:04.9]} 87. Bf3 {[%clk 0:00:04.7]} 87... Qd6 {[%clk 0:00:04.9]}
88. Be4 {[%clk 0:00:05.3]} 88... Qe6+ {[%clk 0:00:05.3]} 89. Kf3 {[%clk
0:00:05.7]} 89... Ra7 {[%clk 0:00:05.5]} 90. g4 {[%clk 0:00:03.9]} 90... Qd6
{[%clk 0:00:05.6]} 91. Qc4 {[%clk 0:00:03.1]} 91... Qa3+ {[%clk 0:00:05.1]} 92.
Kg2 {[%clk 0:00:02.8]} 92... Qb2+ {[%clk 0:00:05.6]} 93. Kg3 {[%clk 0:00:03.1]}
93... Qa3+ {[%clk 0:00:03.5]} 94. Bf3 {[%clk 0:00:03.6]} 94... Qd6 {[%clk
0:00:03.1]} 95. Qc2 {[%clk 0:00:03.3]} 95... Rc7 {[%clk 0:00:03.2]} 96. Qe4
{[%clk 0:00:03.7]} 96... Re7 {[%clk 0:00:03.2]} 97. Qc4 {[%clk 0:00:03.5]} 97...
Rf7 {[%clk 0:00:03.7]} 98. Qxf7+ {[%clk 0:00:02.6]} 98... Kh8 {[%clk 0:00:04.3]}
99. Qe8+ {[%clk 0:00:03.4]} 99... Kh7 {[%clk 0:00:04.5]} 100. Qe5 {[%clk
0:00:04.3]} 100... Qd2 {[%clk 0:00:04.3]} 101. g5 {[%clk 0:00:04.4]} 101... Qc1
{[%clk 0:00:03.7]} 102. Qe7+ {[%clk 0:00:04.9]} 102... Kh8 {[%clk 0:00:04]} 103.
Qf8+ {[%clk 0:00:05.4]} 103... Kh7 {[%clk 0:00:04.9]} 104. Qh6+ {[%clk
0:00:06.2]} 104... Kg8 {[%clk 0:00:05.4]} 105. Qxg6+ {[%clk 0:00:07.1]} 105...
Kh8 {[%clk 0:00:06.3]} 106. Qf6+ {[%clk 0:00:07.6]} 106... Kg8 {[%clk
0:00:06.8]} 107. Qe5 {[%clk 0:00:07.8]} 107... Qg1+ {[%clk 0:00:06.7]} 108. Bg2
{[%clk 0:00:08.4]} 108... Qc1 {[%clk 0:00:04.5]} 109. g6 {[%clk 0:00:08.5]}
109... Qa3+ {[%clk 0:00:03.4]} 110. Bf3 {[%clk 0:00:07.5]} 110... Qa7 {[%clk
0:00:02.6]} 111. Qe6+ {[%clk 0:00:07.9]} 111... Kh8 {[%clk 0:00:02.7]} 112. Qf6+
{[%clk 0:00:08.5]} 112... Kg8 {[%clk 0:00:03.1]} 113. Qf7+ {[%clk 0:00:09]}
113... Qxf7 {[%clk 0:00:01]} 114. gxf7+ {[%clk 0:00:09.9]} 114... Kxf7 {[%clk
0:00:01]} 115. Kg4 {[%clk 0:00:10.8]} 115... Kf6 {[%clk 0:00:01.4]} 116. f5
{[%clk 0:00:11.7]} 116... Kg7 {[%clk 0:00:02.3]} 117. Kg5 {[%clk 0:00:12.6]}
117... Kf7 {[%clk 0:00:03.2]} 118. Bh5+ {[%clk 0:00:13.3]} 118... Kf8 {[%clk
0:00:03.5]} 119. f6 {[%clk 0:00:13.9]} 119... Kg8 {[%clk 0:00:03.9]} 120. Kg6
{[%clk 0:00:14.2]} 120... Kh8 {[%clk 0:00:04.5]} 121. Kf5 {[%clk 0:00:14.1]}
121... Kh7 {[%clk 0:00:04.8]} 122. Bf3 {[%clk 0:00:15]} 122... Kg8 {[%clk
0:00:05.3]} 123. Ke6 {[%clk 0:00:15.9]} 123... Kf8 {[%clk 0:00:05.9]} 124. f7
{[%clk 0:00:16.2]} 124... Kg7 {[%clk 0:00:06.6]} 125. Ke7 {[%clk 0:00:17.1]}
125... Kh7 {[%clk 0:00:06.6]} 126. f8=Q {[%clk 0:00:17.5]} 126... Kg6 {[%clk
0:00:07.1]} 127. Qf6+ {[%clk 0:00:18.1]} 127... Kh7 {[%clk 0:00:04.7]} 128. Qg5
{[%clk 0:00:17.5]} 128... Kh8 {[%clk 0:00:05]} 129. Kf7 {[%clk 0:00:18.2]}
129... Kh7 {[%clk 0:00:05.9]} 130. Qh5# {[%clk 0:00:19.1]} 1-0

[Event "Early-Titled-Tuesday-Blitz-May-28-2024"]
[Site "Chess.com"]
[Date "2024.05.28"]
[Round "5"]
[White "Franmu14"]
[Black "enriquebutti"]
[Result "1-0"]
[WhiteElo "2707"]
[BlackElo "2105"]
[TimeControl "180+1"]
[EndTime "8:51:59 PDT"]
[Termination "Franmu14 won by resignation"]

1. e4 {[%clk 0:03:00.9]} 1... c5 {[%clk 0:02:59.2]} 2. Nc3 {[%clk 0:03:01.8]}
2... e6 {[%clk 0:02:58.3]} 3. d4 {[%clk 0:02:55.6]} 3... cxd4 {[%clk 0:02:57.5]}
4. Qxd4 {[%clk 0:02:56.5]} 4... Nc6 {[%clk 0:02:56.9]} 5. Qe3 {[%clk 0:02:57.4]}
5... Nf6 {[%clk 0:02:54.8]} 6. b3 {[%clk 0:02:56.8]} 6... b6 {[%clk 0:02:48.5]}
7. Bb2 {[%clk 0:02:55]} 7... Bc5 {[%clk 0:02:47.8]} 8. Qg3 {[%clk 0:02:55.5]}
8... O-O {[%clk 0:02:46.6]} 9. O-O-O {[%clk 0:02:56]} 9... Qe7 {[%clk
0:02:38.6]} 10. Bd3 {[%clk 0:02:55.7]} 10... Bd4 {[%clk 0:02:32.2]} 11. Nge2
{[%clk 0:02:54.9]} 11... e5 {[%clk 0:02:31.6]} 12. Nxd4 {[%clk 0:02:53.6]} 12...
Nxd4 {[%clk 0:02:30.9]} 13. Kb1 {[%clk 0:02:52.9]} 13... Bb7 {[%clk 0:02:29.9]}
14. f4 {[%clk 0:02:52.7]} 14... d6 {[%clk 0:02:29]} 15. fxe5 {[%clk 0:02:46.5]}
15... dxe5 {[%clk 0:02:28.4]} 16. Rhf1 {[%clk 0:02:47.2]} 16... Rfd8 {[%clk
0:02:26.7]} 17. Rf2 {[%clk 0:02:43.3]} 17... Nh5 {[%clk 0:02:19.2]} 18. Qe3
{[%clk 0:02:41.8]} 18... Nf4 {[%clk 0:02:17.6]} 19. Rdf1 {[%clk 0:02:41.7]}
19... f6 {[%clk 0:02:16.3]} 20. Bc4+ {[%clk 0:02:41.4]} 20... Kh8 {[%clk
0:02:14.8]} 21. Nd5 {[%clk 0:02:31.8]} 21... Nxd5 {[%clk 0:02:13.4]} 22. exd5
{[%clk 0:02:31.7]} 22... Bxd5 {[%clk 0:02:10.2]} 23. Bd3 {[%clk 0:02:32.3]}
23... Bg8 {[%clk 0:02:05.8]} 24. g4 {[%clk 0:02:28.6]} 24... Ne6 {[%clk
0:02:00.4]} 25. h4 {[%clk 0:02:26.6]} 25... Nf4 {[%clk 0:01:59.6]} 26. Rxf4
{[%clk 0:02:25.7]} 1-0

[Event "Early-Titled-Tuesday-Blitz-May-28-2024"]
[Site "Chess.com"]
[Date "2024.05.28"]
[Round "5"]
[White "soloderisas"]
[Black "baki83"]
[Result "0-1"]
[WhiteElo "2632"]
[BlackElo "2907"]
[TimeControl "180+1"]
[EndTime "8:52:17 PDT"]
[Termination "baki83 won by resignation"]

1. d4 {[%clk 0:03:00.9]} 1... d5 {[%clk 0:02:59.3]} 2. Nf3 {[%clk 0:03:01]} 2...
Nf6 {[%clk 0:02:59]} 3. Bf4 {[%clk 0:03:01.4]} 3... Bf5 {[%clk 0:02:58.9]} 4. e3
{[%clk 0:03:01.5]} 4... e6 {[%clk 0:02:59.3]} 5. c4 {[%clk 0:03:01.8]} 5... Bd6
{[%clk 0:02:58.6]} 6. Bg3 {[%clk 0:03:00.9]} 6... Bxb1 {[%clk 0:02:55.3]} 7.
Qxb1 {[%clk 0:03:00.2]} 7... Bb4+ {[%clk 0:02:55.2]} 8. Kd1 {[%clk 0:02:59]}
8... O-O {[%clk 0:02:52.3]} 9. Qc2 {[%clk 0:02:58.2]} 9... c5 {[%clk 0:02:51.6]}
10. a3 {[%clk 0:02:53]} 10... Ba5 {[%clk 0:02:51.7]} 11. Bd3 {[%clk 0:02:48]}
11... cxd4 {[%clk 0:02:48]} 12. exd4 {[%clk 0:02:47.6]} 12... dxc4 {[%clk
0:02:46.2]} 13. Bxc4 {[%clk 0:02:46.7]} 13... Nc6 {[%clk 0:02:45.7]} 14. Ke2
{[%clk 0:02:34.3]} 14... Rc8 {[%clk 0:02:20.3]} 15. Qd3 {[%clk 0:02:22]} 15...
Qe7 {[%clk 0:02:10.3]} 16. Rhd1 {[%clk 0:02:16.8]} 16... Rfd8 {[%clk 0:02:09.4]}
17. Kf1 {[%clk 0:02:09.1]} 17... Bb6 {[%clk 0:02:09]} 18. Rd2 {[%clk 0:01:49.2]}
18... Nxd4 {[%clk 0:02:06.6]} 19. Rad1 {[%clk 0:01:49.1]} 19... Nxf3 {[%clk
0:01:58.6]} 20. Qxf3 {[%clk 0:01:49]} 20... Rxd2 {[%clk 0:01:58.4]} 21. Rxd2
{[%clk 0:01:48.9]} 21... Rxc4 {[%clk 0:01:58.1]} 0-1

[Event "Early-Titled-Tuesday-Blitz-May-28-2024"]
[Site "Chess.com"]
[Date "2024.05.28"]
[Round "5"]
[White "Viktor_Poddubnyi"]
[Black "nikitakhoroshev"]
[Result "1-0"]
[WhiteElo "2304"]
[BlackElo "2465"]
[TimeControl "180+1"]
[EndTime "8:52:29 PDT"]
[Termination "Viktor_Poddubnyi won by resignation"]

1. e4 {[%clk 0:03:00]} 1... e5 {[%clk 0:02:58.7]} 2. f4 {[%clk 0:02:59.4]} 2...
d5 {[%clk 0:02:58.1]} 3. exd5 {[%clk 0:02:59]} 3... exf4 {[%clk 0:02:56.6]} 4.
d4 {[%clk 0:02:58.7]} 4... Nf6 {[%clk 0:02:53.8]} 5. c4 {[%clk 0:02:58.1]} 5...
c6 {[%clk 0:02:52.8]} 6. Bxf4 {[%clk 0:02:58.3]} 6... cxd5 {[%clk 0:02:52.2]} 7.
Nf3 {[%clk 0:02:57.7]} 7... Bb4+ {[%clk 0:02:51.4]} 8. Nc3 {[%clk 0:02:57.9]}
8... O-O {[%clk 0:02:49.2]} 9. Be2 {[%clk 0:02:58]} 9... Ne4 {[%clk 0:02:48]}
10. Qb3 {[%clk 0:02:41.5]} 10... a5 {[%clk 0:02:38.4]} 11. O-O {[%clk
0:02:36.2]} 11... Nxc3 {[%clk 0:02:27.4]} 12. bxc3 {[%clk 0:02:33.9]} 12... Re8
{[%clk 0:02:24.8]} 13. Ne5 {[%clk 0:02:21.2]} 13... Bd6 {[%clk 0:02:08.3]} 14.
Nxf7 {[%clk 0:02:07.9]} 14... Kxf7 {[%clk 0:01:57.9]} 15. Bg5+ {[%clk
0:01:58.9]} 1-0

[Event "Early-Titled-Tuesday-Blitz-May-28-2024"]
[Site "Chess.com"]
[Date "2024.05.28"]
[Round "5"]
[White "ViktoriyaTarasova"]
[Black "korbul"]
[Result "0-1"]
[WhiteElo "2365"]
[BlackElo "2666"]
[TimeControl "180+1"]
[EndTime "8:52:31 PDT"]
[Termination "korbul won by checkmate"]

1. d4 {[%clk 0:03:00.9]} 1... Nf6 {[%clk 0:02:59.5]} 2. c4 {[%clk 0:03:00.3]}
2... e6 {[%clk 0:02:59.9]} 3. Nc3 {[%clk 0:02:59.7]} 3... Bb4 {[%clk 0:02:59.9]}
4. e3 {[%clk 0:02:53.6]} 4... O-O {[%clk 0:02:59.6]} 5. Nf3 {[%clk 0:02:44.8]}
5... b6 {[%clk 0:02:57.8]} 6. Bd3 {[%clk 0:02:41.2]} 6... Bb7 {[%clk 0:02:57.6]}
7. O-O {[%clk 0:02:40.1]} 7... Bxc3 {[%clk 0:02:57.8]} 8. bxc3 {[%clk
0:02:39.5]} 8... Ne4 {[%clk 0:02:58.7]} 9. Nd2 {[%clk 0:02:38.4]} 9... f5 {[%clk
0:02:56]} 10. f3 {[%clk 0:02:32.8]} 10... Nxd2 {[%clk 0:02:51.3]} 11. Bxd2
{[%clk 0:02:32.6]} 11... d6 {[%clk 0:02:51.9]} 12. Qe2 {[%clk 0:02:29.6]} 12...
Nd7 {[%clk 0:02:51]} 13. e4 {[%clk 0:02:29.8]} 13... fxe4 {[%clk 0:02:49.8]} 14.
fxe4 {[%clk 0:02:28.6]} 14... e5 {[%clk 0:02:48.1]} 15. Rxf8+ {[%clk 0:02:26.3]}
15... Qxf8 {[%clk 0:02:47.3]} 16. Rf1 {[%clk 0:02:26.3]} 16... Qe7 {[%clk
0:02:47.4]} 17. h3 {[%clk 0:02:14.4]} 17... Rf8 {[%clk 0:02:46.4]} 18. Rxf8+
{[%clk 0:02:06.2]} 18... Nxf8 {[%clk 0:02:45.8]} 19. Qf3 {[%clk 0:02:02.1]}
19... Ne6 {[%clk 0:02:44.4]} 20. Be3 {[%clk 0:02:00.1]} 20... Qf6 {[%clk
0:02:38.3]} 21. Qxf6 {[%clk 0:01:59.5]} 21... gxf6 {[%clk 0:02:38.1]} 22. g3
{[%clk 0:01:54.7]} 22... c5 {[%clk 0:02:35.6]} 23. d5 {[%clk 0:01:53.9]} 23...
Nd8 {[%clk 0:02:35.2]} 24. Kf2 {[%clk 0:01:52.5]} 24... Ba6 {[%clk 0:02:34.9]}
25. Kf3 {[%clk 0:01:50.3]} 25... Nb7 {[%clk 0:02:32]} 26. Kg4 {[%clk 0:01:47.4]}
26... Na5 {[%clk 0:02:30.9]} 27. Kf5 {[%clk 0:01:47]} 27... Kf7 {[%clk
0:02:30.7]} 28. Be2 {[%clk 0:01:44.6]} 28... Bxc4 {[%clk 0:02:30.1]} 29. Bh5+
{[%clk 0:01:44.4]} 29... Ke7 {[%clk 0:02:30.4]} 30. a3 {[%clk 0:01:41.1]} 30...
Bd3 {[%clk 0:02:23.9]} 31. Bh6 {[%clk 0:01:40.7]} 31... Nc4 {[%clk 0:02:20.2]}
32. Bg7 {[%clk 0:01:40]} 32... Ne3# {[%clk 0:02:18.7]} 0-1

[Event "Early-Titled-Tuesday-Blitz-May-28-2024"]
[Site "Chess.com"]
[Date "2024.05.28"]
[Round "5"]
[White "juancruzarias"]
[Black "TigrVShlyape"]
[Result "0-1"]
[WhiteElo "2676"]
[BlackElo "2911"]
[TimeControl "180+1"]
[EndTime "8:53:32 PDT"]
[Termination "TigrVShlyape won by resignation"]

1. e4 {[%clk 0:02:58.3]} 1... c5 {[%clk 0:02:59.8]} 2. Nc3 {[%clk 0:02:57.6]}
2... e6 {[%clk 0:02:58.7]} 3. g3 {[%clk 0:02:56.6]} 3... a6 {[%clk 0:02:57.1]}
4. a4 {[%clk 0:02:55.2]} 4... b6 {[%clk 0:02:51.9]} 5. Bg2 {[%clk 0:02:55.4]}
5... Bb7 {[%clk 0:02:52.2]} 6. d3 {[%clk 0:02:54.9]} 6... Nc6 {[%clk 0:02:50.5]}
7. Nge2 {[%clk 0:02:52.5]} 7... Nge7 {[%clk 0:02:45.8]} 8. O-O {[%clk
0:02:52.6]} 8... Ng6 {[%clk 0:02:44.8]} 9. f4 {[%clk 0:02:46.6]} 9... Be7 {[%clk
0:02:42.4]} 10. f5 {[%clk 0:02:44.6]} 10... Nge5 {[%clk 0:02:41.7]} 11. Nf4
{[%clk 0:02:41.7]} 11... g6 {[%clk 0:02:41.3]} 12. Kh1 {[%clk 0:02:24]} 12... h5
{[%clk 0:02:40.1]} 13. fxg6 {[%clk 0:02:22.4]} 13... fxg6 {[%clk 0:02:39]} 14.
h4 {[%clk 0:02:08.1]} 14... Qc7 {[%clk 0:02:31.1]} 15. Nh3 {[%clk 0:02:02.9]}
15... O-O-O {[%clk 0:02:21.9]} 16. Bf4 {[%clk 0:01:59.3]} 16... Bd6 {[%clk
0:02:20.4]} 17. Ng5 {[%clk 0:01:57.3]} 17... Rdf8 {[%clk 0:02:17.6]} 18. Qd2
{[%clk 0:01:53.5]} 18... Kb8 {[%clk 0:02:16.1]} 19. Ne2 {[%clk 0:01:39.4]} 19...
Ka8 {[%clk 0:02:05.4]} 20. Ng1 {[%clk 0:01:37.4]} 20... Nd4 {[%clk 0:02:01.6]}
21. Rae1 {[%clk 0:01:31]} 21... Ng4 {[%clk 0:02:00.2]} 22. c3 {[%clk 0:01:24.8]}
22... Bxf4 {[%clk 0:01:58.2]} 23. gxf4 {[%clk 0:01:16.9]} 23... Nb3 {[%clk
0:01:53.3]} 24. Qd1 {[%clk 0:01:14.8]} 24... Rxf4 {[%clk 0:01:52.9]} 25. Rxf4
{[%clk 0:01:01.7]} 25... Qxf4 {[%clk 0:01:52.2]} 0-1

[Event "Early-Titled-Tuesday-Blitz-May-28-2024"]
[Site "Chess.com"]
[Date "2024.05.28"]
[Round "5"]
[White "ChrisTool2"]
[Black "FMStan15"]
[Result "1-0"]
[WhiteElo "2389"]
[BlackElo "2144"]
[TimeControl "180+1"]
[EndTime "8:53:37 PDT"]
[Termination "ChrisTool2 won by checkmate"]

1. d4 {[%clk 0:03:00.9]} 1... Nf6 {[%clk 0:02:51.7]} 2. c4 {[%clk 0:03:00.7]}
2... g6 {[%clk 0:02:52.1]} 3. f3 {[%clk 0:03:01.1]} 3... d6 {[%clk 0:02:53]} 4.
e4 {[%clk 0:03:01.4]} 4... Bg7 {[%clk 0:02:53.6]} 5. Nc3 {[%clk 0:03:01.9]} 5...
O-O {[%clk 0:02:53.6]} 6. Nge2 {[%clk 0:03:02.5]} 6... e5 {[%clk 0:02:53.9]} 7.
d5 {[%clk 0:03:02.3]} 7... c6 {[%clk 0:02:53.2]} 8. Bg5 {[%clk 0:03:02.5]} 8...
cxd5 {[%clk 0:02:53.1]} 9. cxd5 {[%clk 0:03:03.4]} 9... a6 {[%clk 0:02:52.5]}
10. a4 {[%clk 0:03:03]} 10... h6 {[%clk 0:02:52.7]} 11. Be3 {[%clk 0:03:02.6]}
11... g5 {[%clk 0:02:52.5]} 12. Qd2 {[%clk 0:02:59.7]} 12... Nh5 {[%clk
0:02:52.3]} 13. h4 {[%clk 0:02:48]} 13... Nf4 {[%clk 0:02:49.4]} 14. hxg5 {[%clk
0:02:47]} 14... hxg5 {[%clk 0:02:49]} 15. g3 {[%clk 0:02:43.5]} 15... Nxe2
{[%clk 0:02:48.8]} 16. Bxe2 {[%clk 0:02:42]} 16... f6 {[%clk 0:02:49]} 17. a5
{[%clk 0:02:29.3]} 17... Kf7 {[%clk 0:02:45.3]} 18. f4 {[%clk 0:02:27]} 18...
exf4 {[%clk 0:02:44.7]} 19. Bh5+ {[%clk 0:02:25.3]} 19... Kg8 {[%clk 0:02:43.7]}
20. gxf4 {[%clk 0:02:19.1]} 20... Qe7 {[%clk 0:02:18.8]} 21. Qh2 {[%clk
0:02:15.6]} 21... g4 {[%clk 0:01:55.9]} 22. Bg6 {[%clk 0:02:10.6]} 22... Rd8
{[%clk 0:01:54.9]} 23. Qh7+ {[%clk 0:02:01.9]} 23... Kf8 {[%clk 0:01:55]} 24. f5
{[%clk 0:01:57.9]} 24... Qe5 {[%clk 0:01:51.2]} 25. Bh6 {[%clk 0:01:48.8]} 25...
Qg3+ {[%clk 0:01:49.5]} 26. Kd2 {[%clk 0:01:47.8]} 26... Qg2+ {[%clk 0:01:39.1]}
27. Kd3 {[%clk 0:01:42.1]} 27... Qf3+ {[%clk 0:01:33.6]} 28. Kc4 {[%clk
0:01:41.9]} 28... b5+ {[%clk 0:01:16.6]} 29. axb6 {[%clk 0:01:39.2]} 29... Bxh6
{[%clk 0:01:05.7]} 30. Qf7# {[%clk 0:01:37.8]} 1-0

[Event "Early-Titled-Tuesday-Blitz-May-28-2024"]
[Site "Chess.com"]
[Date "2024.05.28"]
[Round "5"]
[White "francyIM"]
[Black "Galileo22"]
[Result "1-0"]
[WhiteElo "2815"]
[BlackElo "2619"]
[TimeControl "180+1"]
[EndTime "8:53:38 PDT"]
[Termination "francyIM won by resignation"]

1. e4 {[%clk 0:03:00]} 1... d5 {[%clk 0:02:59.7]} 2. exd5 {[%clk 0:03:00]} 2...
Qxd5 {[%clk 0:03:00.4]} 3. Nf3 {[%clk 0:03:00]} 3... Bg4 {[%clk 0:02:58]} 4. Be2
{[%clk 0:02:58.9]} 4... Nf6 {[%clk 0:02:54.2]} 5. h3 {[%clk 0:02:59.1]} 5... Bh5
{[%clk 0:02:52.1]} 6. Nc3 {[%clk 0:02:57]} 6... Qd6 {[%clk 0:02:51.9]} 7. d4
{[%clk 0:02:55.9]} 7... c6 {[%clk 0:02:51.2]} 8. g4 {[%clk 0:02:52.9]} 8... Bg6
{[%clk 0:02:50.8]} 9. Ne5 {[%clk 0:02:52.3]} 9... Nbd7 {[%clk 0:02:46.2]} 10.
Bf4 {[%clk 0:02:51.3]} 10... Qb4 {[%clk 0:02:44.6]} 11. Nc4 {[%clk 0:02:43.5]}
11... Ne4 {[%clk 0:01:57.3]} 12. a3 {[%clk 0:02:35.9]} 12... Nxc3 {[%clk
0:01:53.1]} 13. Qd2 {[%clk 0:02:23.9]} 13... Nxe2 {[%clk 0:01:47.2]} 14. axb4
{[%clk 0:02:20]} 14... Nxf4 {[%clk 0:01:43.1]} 15. Qxf4 {[%clk 0:02:20.9]} 15...
Bxc2 {[%clk 0:01:35]} 16. Qc7 {[%clk 0:02:20]} 16... Be4 {[%clk 0:01:30.2]} 17.
Rxa7 {[%clk 0:02:17.7]} 17... Rd8 {[%clk 0:01:26.2]} 18. O-O {[%clk 0:02:10.6]}
18... Bd3 {[%clk 0:01:14.4]} 19. Rc1 {[%clk 0:01:49.2]} 19... e6 {[%clk
0:01:10.6]} 20. Ne5 {[%clk 0:01:41.1]} 20... Ba6 {[%clk 0:01:01.3]} 21. Nxc6
{[%clk 0:01:30.1]} 1-0